bitfinex/quotes_SOLUSD_20260125
["timestamp","ask_amount","ask_price","bid_price","bid_amount"]
[1769358232438,4.5,122.78,122.73,5.21952892]
[1769358233036,4.5,122.77,122.72,5.21952892]
[1769358233233,4.5,122.79,122.75,5.21952892]
[1769358233440,4.5,122.77,122.72,5.21952892]
[1769358233764,8.14333554,122.8,122.69,13.36999755]
[1769358233765,4.5,122.74,122.69,13.36999755]
[1769358234130,4.5,122.74,122.7,5.21952892]
[1769358234536,4.5,122.73,122.69,8.15046863]
[1769358234735,4.5,122.73,122.69,5.21952892]
[1769358235123,4.5,122.76,122.71,5.21952892]
[1769358235324,4.5,122.78,122.75,5.21952892]
[1769358235532,4.5,122.78,122.76,5.21952892]
[1769358235831,4.5,122.78,122.75,5.21952892]
[1769358236428,4.5,122.78,122.74,5.21952892]
[1769358236843,4.5,122.78,122.69,28.52714012]
[1769358237058,4.5,122.78,122.74,5.21952892]
[1769358237444,4.5,122.78,122.73,5.21952892]
[1769358237642,4.5,122.78,122.74,5.21952892]
[1769358238257,4.5,122.78,122.75,5.21952892]
[1769358238844,4.5,122.78,122.74,13.36681697]
[1769358239247,4.5,122.78,122.68,69.28358007]
[1769358239448,4.5,122.78,122.73,5.21952892]
[1769358239758,4.5,122.8,122.75,5.21952892]
[1769358239961,4.5,122.8,122.76,5.21952892]
[1769358240141,4.5,122.82,122.77,5.21952892]
[1769358240346,4.5,122.82,122.69,5.34408856]
[1769358240347,4.5,122.82,122.78,5.21952892]
[1769358240749,4.5,122.8,122.75,5.21952892]
[1769358240943,4.5,122.79,122.76,5.21952892]
[1769358241762,4.5,122.79,122.75,8.14644765]
[1769358241945,4.5,122.79,122.75,13.36597657]
[1769358242260,4.5,122.79,122.74,5.21952892]
[1769358242463,4.5,122.79,122.74,13.36656496]
[1769358243161,4.5,122.79,122.75,5.21952892]
[1769358243551,4.5,122.79,122.76,5.21952892]
[1769358243743,4.5,122.79,122.75,5.21952892]
[1769358244169,4.5,122.79,122.74,5.21952892]
[1769358245047,4.5,122.79,122.75,5.21952892]
[1769358245258,4.5,122.79,122.7,69.27280275]
[1769358245463,4.5,122.81,122.76,5.21952892]
[1769358245773,4.5,122.83,122.78,5.21952892]
[1769358246063,4.5,122.81,122.77,5.21952892]
[1769358246566,4.5,122.79,122.74,5.21952892]
[1769358246751,4.5,122.79,122.73,8.14767008]
[1769358246957,4.5,122.78,122.73,13.367199]
[1769358247253,4.5,122.78,122.74,13.36671777]
[1769358247762,4.5,122.81,122.77,5.21952892]
[1769358247960,4.5,122.81,122.76,5.21952892]
[1769358248148,4.5,122.79,122.74,5.21952892]
[1769358248344,4.5,122.79,122.74,13.3668048]
[1769358248541,4.5,122.79,122.75,5.21952892]
[1769358248871,4.5,122.77,122.73,5.21952892]
[1769358249058,4.5,122.79,122.74,5.21952892]
[1769358249251,4.5,122.79,122.75,5.21952892]
[1769358249460,4.5,122.79,122.76,5.21952892]
[1769358249644,4.5,122.81,122.77,5.21952892]
[1769358249844,4.5,122.81,122.78,5.21952892]
[1769358250267,4.5,122.8,122.76,5.21952892]
[1769358250466,4.5,122.8,122.75,5.21952892]
[1769358250661,4.5,122.8,122.74,8.14723553]
[1769358250858,4.5,122.8,122.75,5.21952892]
[1769358251290,4.5,122.78,122.73,13.36723891]
[1769358252467,4.5,122.78,122.72,8.14852837]
[1769358252669,4.5,122.76,122.71,5.21952892]
[1769358252873,4.5,122.76,122.72,5.21952892]
[1769358253383,4.5,122.75,122.7,5.21952892]
[1769358253588,4.5,122.72,122.66,28.53415946]
[1769358253758,4.5,122.72,122.68,5.21952892]
[1769358254154,4.5,122.72,122.66,8.15261699]
[1769358254354,4.5,122.71,122.66,5.21952892]
[1769358254958,4.5,122.71,122.67,5.21952892]
[1769358255769,4.5,122.75,122.7,5.21952892]
[1769358256175,4.5,122.75,122.71,5.21952892]
[1769358256363,4.5,122.75,122.72,5.21952892]
[1769358256565,4.5,122.77,122.73,5.21952892]
[1769358256991,4.5,122.75,122.71,5.21952892]
[1769358257497,4.5,122.74,122.7,5.21952892]
[1769358257661,4.5,122.74,122.71,5.21952892]
[1769358258354,4.5,122.74,122.7,5.21952892]
[1769358260187,4.5,122.73,122.69,5.21952892]
[1769358260683,8.14539379,122.77,122.66,5.21952892]
[1769358260684,4.5,122.71,122.66,5.21952892]
[1769358260983,4.5,122.71,122.67,5.21952892]
[1769358261182,4.5,122.69,122.65,5.21952892]
[1769358261478,4.5,122.69,122.66,5.21952892]
[1769358261991,5.21952892,122.71,122.66,5.21952892]
[1769358263563,5.21952892,122.74,122.68,5.21952892]
[1769358263763,5.21952892,122.76,122.71,5.21952892]
[1769358263980,4.07957061,122.75,122.71,5.21952892]
[1769358264785,4.07957061,122.75,122.72,5.21952892]
[1769358265373,9.29909953,122.79,122.74,5.21952892]
[1769358265682,4.07957061,122.78,122.74,5.21952892]
[1769358266165,4.07957061,122.78,122.75,5.21952892]
[1769358266671,4.07957061,122.78,122.74,8.14729223]
[1769358266672,4.07957061,122.78,122.74,5.21952892]
[1769358267679,4.07957061,122.78,122.73,8.14765854]
[1769358267680,4.07957061,122.77,122.73,5.21952892]
[1769358268278,4.07957061,122.76,122.73,5.21952892]
[1769358269487,9.29909953,122.78,122.73,5.21952892]
[1769358270212,4.07957061,122.78,122.73,5.21952892]
[1769358270789,4.07957061,122.78,122.74,5.21952892]
[1769358271588,4.07957061,122.77,122.73,5.21952892]
[1769358272209,4.07957061,122.77,122.74,5.21952892]
[1769358272510,4.07957061,122.81,122.76,9.57069183]
[1769358272712,4.07957061,122.81,122.77,5.21952892]
[1769358273199,4.37140556,122.8,122.74,8.14730146]
[1769358273513,4.37140556,122.8,122.75,5.21952892]
[1769358273692,4.37140556,122.8,122.76,5.21952892]
[1769358274211,4.37140556,122.8,122.77,5.21952892]
[1769358274913,4.37140556,122.8,122.76,5.21952892]
[1769358275110,4.37140556,122.8,122.77,5.21952892]
[1769358275288,4.37140556,122.8,122.75,8.1462899]
[1769358275486,4.37140556,122.79,122.74,8.14724655]
[1769358275688,4.37140556,122.79,122.75,5.21952892]
[1769358276717,4.37140556,122.79,122.76,5.21952892]
[1769358277294,4.37140556,122.81,122.76,5.21952892]
[1769358277494,4.37140556,122.82,122.77,9.50978686]
[1769358277711,4.37140556,122.82,122.79,5.21952892]
[1769358277918,4.37140556,122.83,122.79,5.21952892]
[1769358280119,4.37140556,122.82,122.78,5.21952892]
[1769358280322,4.37140556,122.82,122.79,5.21952892]
[1769358280914,4.37140556,122.82,122.78,5.21952892]
[1769358281303,4.37140556,122.8,122.76,5.21952892]
[1769358281726,4.37140556,122.79,122.75,5.21952892]
[1769358282615,4.37140556,122.77,122.73,5.21952892]
[1769358283414,4.37140556,122.77,122.72,8.14840927]
[1769358283618,4.37140556,122.77,122.73,5.21952892]
[1769358283820,4.37140556,122.79,122.74,4.29025794]
[1769358284009,4.37140556,122.78,122.74,5.21952892]
[1769358284414,4.37140556,122.78,122.75,5.21952892]
[1769358284617,4.37140556,122.77,122.73,5.21952892]
[1769358285223,4.37140556,122.77,122.74,5.21952892]
[1769358285810,4.37140556,122.79,122.75,5.21952892]
[1769358286806,9.59093448,122.81,122.76,5.21952892]
[1769358287011,4.37140556,122.81,122.76,9.50978686]
[1769358287233,4.37140556,122.83,122.78,5.21952892]
[1769358288109,4.37140556,122.83,122.79,5.21952892]
[1769358289634,4.47140556,122.85,122.81,5.21952892]
[1769358290507,4.47140556,122.85,122.82,5.21952892]
[1769358290710,4.47140556,122.85,122.81,5.21952892]
[1769358291341,0.1,122.85,122.81,9.50978686]
[1769358291510,4.47140556,122.85,122.81,5.21952892]
[1769358293142,0.1,122.85,122.83,5.21952892]
[1769358293534,0.1,122.85,122.83,5.21311889]
[1769358293733,0.1,122.86,122.84,5.21311889]
[1769358294037,0.1,122.87,122.85,5.21311889]
[1769358294656,4.47140556,122.87,122.84,5.21311889]
[1769358294838,4.47140556,122.87,122.83,5.21311889]
[1769358295155,4.47140556,122.87,122.8,12.43328366]
[1769358295365,4.47140556,122.87,122.82,5.21311889]
[1769358295747,4.47140556,122.87,122.83,5.21311889]
[1769358297461,4.47140556,122.87,122.82,5.21311889]
[1769358298064,4.47140556,122.87,122.83,5.21311889]
[1769358299074,0.1,122.87,122.84,5.21311889]
[1769358299234,0.1,122.87,122.85,5.21311889]
[1769358299437,0.1,122.87,122.86,5.21311889]
[1769358299660,0.1,122.87,122.85,5.21311889]
[1769358300340,4.47140556,122.87,122.83,5.21311889]
[1769358300549,4.47140556,122.87,122.84,5.21311889]
[1769358300747,4.47140556,122.87,122.83,5.21311889]
[1769358300956,4.37140556,122.85,122.81,5.21311889]
[1769358301260,4.37140556,122.84,122.8,5.21311889]
[1769358301635,4.37140556,122.83,122.79,5.21311889]
[1769358302264,4.37140556,122.85,122.8,4.29025794]
[1769358302441,4.37140556,122.84,122.8,5.21311889]
[1769358302782,4.37140556,122.86,122.82,5.21311889]
[1769358302989,4.37140556,122.86,122.79,4.29025794]
[1769358303190,9.70284757,122.85,122.79,12.43423803]
[1769358303475,4.48972868,122.85,122.81,5.21311889]
[1769358303651,4.48972868,122.85,122.82,5.21311889]
[1769358303867,4.48972868,122.85,122.81,5.21311889]
[1769358304059,4.48972868,122.84,122.8,5.21311889]
[1769358304243,4.48972868,122.84,122.81,5.21311889]
[1769358306173,4.48972868,122.84,122.8,5.21311889]
[1769358307053,4.48972868,122.83,122.79,5.21311889]
[1769358307257,4.48972868,122.83,122.81,5.21311889]
[1769358307439,4.48972868,122.85,122.81,5.21311889]
[1769358307636,0.1,122.87,122.83,5.21311889]
[1769358307856,4.58972868,122.87,122.83,5.21311889]
[1769358308963,0.1,122.87,122.86,5.21311889]
[1769358309267,4.58972868,122.87,122.85,5.21311889]
[1769358309444,0.1,122.87,122.84,5.21311889]
[1769358309642,0.1,122.87,122.85,5.21311889]
[1769358309950,0.1,122.87,122.84,5.21311889]
[1769358310152,4.58972868,122.87,122.85,5.21311889]
[1769358310460,4.48972868,122.86,122.82,5.21311889]
[1769358310662,4.48972868,122.84,122.77,4.3]
[1769358310868,4.48972868,122.82,122.78,5.21311889]
[1769358311385,4.48972868,122.81,122.74,4.3]
[1769358311544,4.48972868,122.81,122.73,22.62]
[1769358311545,4.48972868,122.79,122.75,5.21311889]
[1769358311942,5.21311889,122.79,122.74,5.21311889]
[1769358312138,4.48972868,122.78,122.74,5.21311889]
[1769358312340,4.48972868,122.77,122.71,4.3]
[1769358312654,4.48972868,122.77,122.74,5.21311889]
[1769358313049,4.48972868,122.77,122.71,8.14920539]
[1769358313375,4.48972868,122.77,122.73,5.21311889]
[1769358314241,4.48972868,122.76,122.72,5.21311889]
[1769358314658,4.48972868,122.76,122.73,5.21311889]
[1769358315165,4.48972868,122.76,122.74,5.21311889]
[1769358315961,4.05430198,122.78,122.75,5.21311889]
[1769358316370,4.05430198,122.78,122.76,5.21311889]
[1769358316665,4.05430198,122.78,122.74,4.3]
[1769358316870,4.05430198,122.8,122.76,5.21311889]
[1769358317373,4.05430198,122.8,122.77,5.21311889]
[1769358317863,4.05430198,122.82,122.72,4.3]
[1769358318070,4.05430198,122.81,122.77,5.21311889]
[1769358318246,4.05430198,122.81,122.78,5.21311889]
[1769358319061,4.05430198,122.81,122.79,5.21311889]
[1769358319259,4.05430198,122.81,122.78,5.21311889]
[1769358319441,4.05430198,122.8,122.74,12.44703445]
[1769358319644,5.21311889,122.8,122.74,8.14719327]
[1769358319856,4.05430198,122.79,122.75,5.21311889]
[1769358320162,4.05430198,122.78,122.75,5.21311889]
[1769358321662,4.05430198,122.78,122.74,5.21311889]
[1769358322057,9.26742087,122.8,122.75,5.21311889]
[1769358322367,4.05430198,122.8,122.76,5.21311889]
[1769358322580,4.05430198,122.77,122.71,20.37247648]
[1769358322881,4.05430198,122.79,122.76,5.21311889]
[1769358323039,5.34408856,122.82,122.78,4.3]
[1769358323246,4.05430198,122.85,122.81,5.21311889]
[1769358323458,4.15430198,122.87,122.83,5.21311889]
[1769358323773,0.1,122.87,122.86,5.21311889]
[1769358323948,0.1,122.89,122.86,5.21311889]
[1769358324145,0.1,122.89,122.87,5.21311889]
[1769358324679,0.1,122.89,122.88,5.21311889]
[1769358326456,4.05430198,122.91,122.88,5.21311889]
[1769358326658,4.05430198,122.91,122.89,5.21311889]
[1769358327047,0.1,122.92,122.9,9.41311889]
[1769358327371,0.1,122.93,122.92,5.21311889]
[1769358327872,4.15430198,122.93,122.89,5.21311889]
[1769358328363,4.05430198,122.92,122.88,5.21311889]
[1769358328951,4.05430198,122.92,122.86,5.21311889]
[1769358329149,4.05430198,122.9,122.87,5.21311889]
[1769358329565,4.05430198,122.9,122.86,5.21311889]
[1769358330662,5.21311889,122.9,122.85,5.21311889]
[1769358330982,5.21311889,122.89,122.84,27.83311889]
[1769358331194,0.1,122.95,122.9,4.35722549]
[1769358331351,0.1,122.95,122.88,9.57034438]
[1769358331352,5.21311889,122.94,122.88,9.57034438]
[1769358331681,0.1,122.95,122.85,4.35722549]
[1769358331682,5.21311889,122.91,122.85,4.35722549]
[1769358331861,5.21311889,122.91,122.86,5.21311889]
[1769358332060,0.1,122.95,122.86,5.21311889]
[1769358332275,5.21311889,122.92,122.86,5.21311889]
[1769358332577,4.05430198,122.91,122.86,5.21311889]
[1769358332783,4.05430198,122.91,122.85,4.35722549]
[1769358332969,4.42709162,122.87,122.83,5.21311889]
[1769358333166,4.42709162,122.87,122.84,5.21311889]
[1769358333352,4.42709162,122.91,122.86,5.21311889]
[1769358333553,4.42709162,122.91,122.87,5.21311889]
[1769358334154,4.42709162,122.93,122.89,5.21311889]
[1769358334484,4.42709162,122.94,122.9,5.21311889]
[1769358334974,9.64021051,122.94,122.89,9.44484761]
[1769358335174,5.21311889,122.94,122.89,4.23172872]
[1769358335380,5.31311889,122.95,122.9,5.21311889]
[1769358336255,0.1,122.95,122.9,5.21311889]
[1769358336452,5.31311889,122.95,122.9,9.44484761]
[1769358336782,0.1,122.95,122.94,5.21311889]
[1769358337478,0.1,122.96,122.94,9.44484761]
[1769358337663,0.1,122.98,122.95,5.21311889]
[1769358337983,0.1,122.98,122.96,5.21311889]
[1769358338473,0.1,122.98,122.97,4.23172872]
[1769358338692,30.42268924,123.01,122.98,4.23172872]
[1769358338854,34.67059913,123.01,122.99,5.21311889]
[1769358339477,30.42268924,123.01,122.98,5.21311889]
[1769358339679,4.42709162,123.0,122.96,5.21311889]
[1769358339858,30.42268924,123.01,122.97,5.21311889]
[1769358340053,34.84978086,123.01,122.95,4.23172872]
[1769358340261,34.84978086,123.01,122.96,5.21311889]
[1769358340262,40.06289975,123.01,122.96,5.21311889]
[1769358340581,9.64021051,122.99,122.94,5.21311889]
[1769358340876,4.42709162,122.97,122.93,5.21311889]
[1769358341677,4.42709162,122.97,122.94,5.21311889]
[1769358341870,9.64021051,122.99,122.94,5.21311889]
[1769358342271,4.42709162,122.98,122.94,5.21311889]
[1769358342792,4.42709162,122.98,122.93,5.21311889]
[1769358342793,9.64021051,122.98,122.93,5.21311889]
[1769358343468,4.42709162,122.96,122.91,5.21311889]
[1769358343670,9.64021051,122.96,122.91,5.21311889]
[1769358343867,5.21311889,122.94,122.9,4.23172872]
[1769358344183,9.64021051,122.95,122.9,9.44484761]
[1769358344385,5.21311889,122.93,122.88,9.44484761]
[1769358344578,5.21311889,122.93,122.88,4.23172872]
[1769358344776,5.21311889,122.93,122.88,9.44484761]
[1769358344978,5.21311889,122.92,122.88,4.23172872]
[1769358345291,4.42709162,122.91,122.86,9.44484761]
[1769358345485,9.64021051,122.92,122.87,5.21311889]
[1769358345677,4.42709162,122.92,122.87,5.21311889]
[1769358346092,9.64021051,122.92,122.87,5.21311889]
[1769358347892,5.21311889,122.91,122.86,9.44484761]
[1769358348283,9.64021051,122.91,122.86,9.44484761]
[1769358348477,5.21311889,122.9,122.86,4.23172872]
[1769358348673,9.64021051,122.91,122.86,9.44484761]
[1769358348986,9.64021051,122.89,122.84,9.44484761]
[1769358349162,5.21311889,122.88,122.83,9.44484761]
[1769358349900,4.42709162,122.89,122.78,12.37613731]
[1769358349901,5.21311889,122.84,122.78,12.37613731]
[1769358350077,9.64021051,122.84,122.79,9.44484761]
[1769358350584,5.21311889,122.83,122.79,4.23172872]
[1769358350781,5.21311889,122.83,122.78,5.21311889]
[1769358351096,9.64021051,122.83,122.79,5.21311889]
[1769358351405,9.64021051,122.83,122.78,4.23172872]
[1769358351595,28.46685643,122.95,122.83,4.23172872]
[1769358351790,69.1337942,122.95,122.79,22.6]
[1769358351975,5.21311889,122.9,122.84,5.21311889]
[1769358352180,4.42709162,122.91,122.86,5.21311889]
[1769358352368,5.21311889,122.92,122.87,5.21311889]
[1769358352570,9.64021051,122.92,122.86,5.21311889]
[1769358352784,9.64021051,122.9,122.85,5.21311889]
[1769358353490,4.42709162,122.89,122.85,5.21311889]
[1769358353691,9.63935838,122.89,122.84,5.21226676]
[1769358354402,9.63935838,122.88,122.83,9.44399548]
[1769358355097,4.42709162,122.9,122.84,5.21226676]
[1769358355272,4.42709162,122.9,122.86,5.21226676]
[1769358355475,9.63935838,122.92,122.87,5.21226676]
[1769358355979,5.34408856,122.91,122.87,5.21226676]
[1769358356183,9.63935838,122.92,122.87,5.21226676]
[1769358357003,9.77118018,122.92,122.88,5.21226676]
[1769358357603,9.63935838,122.95,122.9,5.21226676]
[1769358357770,14.98344694,122.95,122.9,5.21226676]
[1769358358480,34.42709162,122.96,122.9,9.44399548]
[1769358358675,34.42709162,122.96,122.91,5.21226676]
[1769358358971,39.63935838,122.96,122.91,5.21226676]
[1769358360167,9.63935838,122.94,122.88,4.23172872]
[1769358360373,4.42709162,122.93,122.89,5.21226676]
[1769358360672,9.63935838,122.9,122.85,5.21226676]
[1769358360870,9.63935838,122.89,122.84,5.21226676]
[1769358361072,9.63935838,122.88,122.83,5.21226676]
[1769358361280,9.63935838,122.9,122.85,9.44399548]
[1769358361685,4.42709162,122.9,122.85,9.44399548]
[1769358361881,9.63935838,122.87,122.82,5.21226676]
[1769358362078,5.21226676,122.85,122.81,4.23172872]
[1769358362394,4.42709162,122.86,122.81,9.44399548]
[1769358362395,9.63935838,122.86,122.81,9.44399548]
[1769358362792,9.63935838,122.86,122.81,4.23172872]
[1769358362974,5.21226676,122.84,122.79,9.44399548]
[1769358363175,9.6789658,122.84,122.79,9.44399548]
[1769358364193,5.21226676,122.83,122.79,4.23172872]
[1769358364695,5.21226676,122.82,122.77,5.21226676]
[1769358364896,5.21226676,122.82,122.77,9.4258122]
[1769358365088,4.46669904,122.84,122.78,9.4258122]
[1769358365398,5.21226676,122.83,122.78,9.4258122]
[1769358365576,4.46669904,122.84,122.78,9.4258122]
[1769358365777,5.21226676,122.82,122.78,4.21354544]
[1769358366098,5.21226676,122.82,122.77,9.4258122]
[1769358366777,9.6789658,122.83,122.77,9.4258122]
[1769358367076,9.6789658,122.83,122.78,5.21226676]
[1769358367993,4.46669904,122.83,122.77,4.21354544]
[1769358368173,9.6789658,122.83,122.78,5.21226676]
[1769358369801,4.46669904,122.82,122.78,5.21226676]
[1769358369985,5.21226676,122.83,122.79,5.21226676]
[1769358370395,9.6789658,122.83,122.79,5.21226676]
[1769358371075,9.8107876,122.85,122.8,9.4258122]
[1769358371275,9.8107876,122.85,122.81,5.21226676]
[1769358371687,15.02305436,122.85,122.8,9.4258122]
[1769358372697,4.46669904,122.85,122.81,5.21226676]
[1769358372999,15.02305436,122.87,122.82,5.21226676]
[1769358373387,4.46669904,122.86,122.82,5.21226676]
[1769358374485,9.6789658,122.85,122.8,5.21226676]
[1769358374691,9.6789658,122.85,122.8,9.62581425]
[1769358375785,4.42760419,122.83,122.79,5.21226676]
[1769358376111,9.63987095,122.84,122.79,9.62581425]
[1769358377406,4.42760419,122.83,122.77,4.41354749]
[1769358377611,9.63987095,122.83,122.77,4.41354749]
[1769358377909,5.21226676,122.82,122.77,9.62581425]
[1769358378079,4.42760419,122.83,122.78,4.41354749]
[1769358378488,9.63987095,122.83,122.78,4.41354749]
[1769358378705,5.21226676,122.84,122.8,4.41354749]
[1769358380007,9.63987095,122.84,122.78,9.62581425]
[1769358380205,5.34408856,122.85,122.81,9.62581425]
[1769358380414,5.21226676,122.88,122.83,4.41354749]
[1769358380591,9.63987095,122.89,122.84,5.21226676]
[1769358380918,26.87180111,122.93,122.85,4.41354749]
[1769358380919,9.63987095,122.9,122.85,4.41354749]
[1769358381216,5.21226676,122.89,122.85,4.41354749]
[1769358381391,9.63987095,122.88,122.83,9.62581425]
[1769358381592,4.42760419,122.88,122.83,9.62581425]
[1769358381917,4.42760419,122.88,122.83,4.41354749]
[1769358382108,5.21226676,122.87,122.83,4.41354749]
[1769358382410,9.63987095,122.87,122.82,5.21226676]
[1769358382612,9.63987095,122.86,122.81,9.62581425]
[1769358382998,5.21226676,122.85,122.81,4.41354749]
[1769358383213,9.63987095,122.85,122.8,9.62581425]
[1769358383386,9.63987095,122.85,122.8,4.41354749]
[1769358383387,5.21226676,122.84,122.8,4.41354749]
[1769358383810,8.14042881,122.85,122.78,9.62581425]
[1769358384015,9.63987095,122.82,122.77,5.21226676]
[1769358384194,5.21226676,122.81,122.77,4.41354749]
[1769358384894,5.21226676,122.79,122.75,4.41354749]
[1769358385196,5.21226676,122.79,122.74,4.41354749]
[1769358385603,9.63987095,122.79,122.74,9.62581425]
[1769358385815,4.42760419,122.74,122.68,4.41354749]
[1769358385995,9.63987095,122.74,122.68,9.62581425]
[1769358386495,9.63987095,122.73,122.68,9.62581425]
[1769358386693,5.21226676,122.74,122.69,4.41354749]
[1769358387714,5.21226676,122.73,122.69,4.41354749]
[1769358387916,4.42760419,122.82,122.73,4.41354749]
[1769358388088,9.63987095,122.78,122.72,4.41354749]
[1769358388288,5.21226676,122.77,122.72,9.62581425]
[1769358388616,9.63987095,122.78,122.73,9.62581425]
[1769358388803,9.63987095,122.78,122.73,4.41354749]
[1769358389005,5.21226676,122.77,122.73,4.41354749]
[1769358389189,9.63987095,122.78,122.73,4.41354749]
[1769358389819,17.91528836,122.8,122.74,5.21226676]
[1769358389993,9.63987095,122.8,122.75,4.41354749]
[1769358390195,14.98395951,122.8,122.75,9.62581425]
[1769358390805,5.21226676,122.8,122.76,4.41354749]
[1769358391004,5.21226676,122.79,122.74,9.62581425]
[1769358391304,4.42760419,122.78,122.74,5.21226676]
[1769358391521,9.63987095,122.78,122.72,9.62581425]
[1769358391814,8.14360201,122.8,122.73,4.48195515]
[1769358392018,5.34408856,122.82,122.79,9.69422191]
[1769358392222,5.21226676,122.83,122.79,4.48195515]
[1769358392736,5.21226676,122.84,122.79,9.69422191]
[1769358392908,14.74639477,122.84,122.79,9.69422191]
[1769358394036,14.74639477,122.84,122.76,9.47199795]
[1769358394037,5.21226676,122.81,122.76,9.47199795]
[1769358394706,9.40230621,122.82,122.76,9.47199795]
[1769358395030,9.40230621,122.8,122.75,5.21226676]
[1769358395199,9.40230621,122.8,122.74,9.47199795]
[1769358395622,9.40230621,122.8,122.75,4.25973119]
[1769358396815,5.21226676,122.79,122.75,4.25973119]
[1769358397914,9.40230621,122.8,122.75,4.25973119]
[1769358398116,5.21226676,122.79,122.74,9.47199795]
[1769358398824,9.40230621,122.8,122.74,9.47199795]
[1769358399815,10.55635532,122.81,122.76,4.25973119]
[1769358400015,12.33101028,122.84,122.79,4.25973119]
[1769358400225,17.54327704,122.84,122.79,4.25973119]
[1769358400420,17.54327704,122.84,122.73,30.0]
[1769358400421,5.21226676,122.8,122.73,23.97197819]
[1769358400733,5.21226676,122.74,122.64,6.50634773]
[1769358401027,2.2283465,122.68,122.63,5.21226676]
[1769358401229,7.44061326,122.68,122.62,5.41226676]
[1769358401440,5.21226676,122.68,122.62,5.41226676]
[1769358401609,5.21226676,122.68,122.62,0.2]
[1769358401809,5.34408856,122.69,122.64,5.21226676]
[1769358402012,10.55635532,122.69,122.63,5.21226676]
[1769358402529,5.21226676,122.68,122.63,5.21226676]
[1769358402822,7.57243506,122.7,122.63,5.21226676]
[1769358402823,10.55635532,122.69,122.63,5.21226676]
[1769358403010,5.34408856,122.69,122.64,9.47199795]
[1769358403206,5.34408856,122.69,122.65,4.25973119]
[1769358403412,5.34408856,122.69,122.66,4.25973119]
[1769358404201,5.34408856,122.7,122.67,4.25973119]
[1769358404817,10.55635532,122.71,122.67,4.25973119]
[1769358406504,5.21226676,122.7,122.67,4.25973119]
[1769358406825,5.21226676,122.7,122.65,4.25973119]
[1769358407727,5.21226676,122.69,122.65,4.25973119]
[1769358408630,10.37719208,122.72,122.65,4.25973119]
[1769358408822,5.21226676,122.69,122.65,4.25973119]
[1769358409223,5.21226676,122.68,122.65,4.25973119]
[1769358411424,5.21226676,122.68,122.65,4.01505537]
[1769358411626,5.21226676,122.69,122.65,3.77037955]
[1769358412432,5.21226676,122.7,122.65,3.77037955]
[1769358412923,5.21226676,122.69,122.65,3.77037955]
[1769358413621,5.22932112,122.69,122.65,3.77037955]
[1769358414508,5.22932112,122.68,122.65,3.77037955]
[1769358414924,25.71488573,122.73,122.62,4.45973119]
[1769358414925,5.22932112,122.66,122.62,4.45973119]
[1769358415208,5.22932112,122.65,122.62,4.45973119]
[1769358415423,5.22932112,122.66,122.62,4.45973119]
[1769358415623,5.22932112,122.65,122.62,4.45973119]
[1769358416135,5.22932112,122.65,122.62,0.2]
[1769358416649,5.34408856,122.7,122.6,0.14601519]
[1769358416650,2.65881981,122.62,122.6,0.14601519]
[1769358416812,7.86155273,122.61,122.59,0.2]
[1769358417007,5.22932112,122.6,122.57,0.2]
[1769358417316,5.22932112,122.61,122.57,4.45973119]
[1769358417630,2.63223161,122.63,122.57,4.45973119]
[1769358417815,2.63223161,122.65,122.59,4.25973119]
[1769358418009,5.22932112,122.64,122.59,4.25973119]
[1769358418811,5.22932112,122.65,122.6,4.25973119]
[1769358419229,10.78330505,122.69,122.63,4.25973119]
[1769358419414,5.22932112,122.68,122.63,4.25973119]
[1769358419628,5.22932112,122.67,122.63,4.25973119]
[1769358419827,5.22932112,122.68,122.63,4.25973119]
[1769358420126,7.86155273,122.69,122.64,4.25973119]
[1769358420332,5.22932112,122.68,122.63,4.25973119]
[1769358420538,5.22932112,122.67,122.63,4.25973119]
[1769358420721,5.22932112,122.65,122.61,4.25973119]
[1769358421120,5.22932112,122.64,122.61,4.25973119]
[1769358421719,5.22932112,122.63,122.59,4.25973119]
[1769358422135,5.22932112,122.6,122.57,0.2]
[1769358422944,5.22932112,122.61,122.57,0.2]
[1769358423126,5.22932112,122.61,122.57,4.33516124]
[1769358423329,7.97632017,122.64,122.58,4.13516124]
[1769358423517,5.22932112,122.62,122.58,4.13516124]
[1769358423721,5.22932112,122.6,122.57,0.2]
[1769358423951,5.22932112,122.62,122.57,4.33516124]
[1769358424136,5.22932112,122.61,122.57,4.33516124]
[1769358424642,5.22932112,122.62,122.58,4.13516124]
[1769358426328,5.22932112,122.64,122.6,4.13516124]
[1769358426528,10.57340968,122.65,122.6,4.13516124]
[1769358426749,2.63223161,122.68,122.62,4.13516124]
[1769358426939,5.22932112,122.68,122.64,4.13516124]
[1769358427241,5.22932112,122.68,122.65,4.13516124]
[1769358427428,8.14949339,122.71,122.65,4.13516124]
[1769358427634,5.22932112,122.7,122.65,4.13516124]
[1769358427942,5.22932112,122.69,122.65,4.13516124]